bitfinex/quotes_ETHUSD_20220311
["timestamp","ask_amount","ask_price","bid_price","bid_amount"]
[1647013479501,0.01,2585.3,2585.0,0.08235185]
[1647013479701,7.7353,2585.4,2585.0,0.08235185]
[1647013479908,7.7353,2585.4,2585.0,0.46908725]
[1647013480307,0.00417206,2585.3,2585.0,0.00417264]
[1647013480506,0.00417206,2585.3,2585.2,0.08047935]
[1647013480705,0.00417206,2585.3,2585.0,0.08058263]
[1647013481105,0.00417206,2585.3,2585.0,1.04320999]
[1647013481306,0.00417206,2585.3,2585.2,0.0703881]
[1647013481706,0.00417206,2585.3,2585.2,0.3703881]
[1647013481707,0.00417211,2585.3,2585.2,0.3703881]
[1647013482308,7.73933299,2585.4,2585.2,0.3703881]
[1647013483154,7.7353,2585.4,2585.2,0.3703881]
[1647013483351,7.73910089,2585.4,2585.2,0.3703881]
[1647013484152,7.60228976,2585.4,2585.2,0.3703881]
[1647013484353,7.59848887,2585.4,2585.2,0.3703881]
[1647013484553,7.60228976,2585.4,2585.2,0.3703881]
[1647013484756,7.60228976,2585.4,2585.2,0.0703881]
[1647013484961,7.60228976,2585.4,2585.2,0.07608976]
[1647013485163,7.60228976,2585.4,2585.0,0.00380157]
[1647013485359,7.60228976,2585.4,2585.0,0.08749985]
[1647013485560,7.59848887,2585.4,2585.0,0.08369828]
[1647013485760,7.59848887,2585.4,2585.0,0.08733287]
[1647013485963,7.60212282,2585.4,2585.0,0.08733287]
[1647013486703,7.59848887,2585.4,2585.0,0.08369828]
[1647013486904,0.00386607,2585.3,2585.0,0.08756489]
[1647013488105,7.59848887,2585.4,2585.0,0.08369828]
[1647013488507,0.00386603,2585.3,2585.0,0.08756485]
[1647013489308,7.59848887,2585.4,2585.0,0.08369828]
[1647013489507,0.00386603,2585.3,2585.0,0.08756485]
[1647013489807,0.00386603,2585.3,2585.1,0.0830544]
[1647013490256,0.00386603,2585.3,2585.1,0.3830544]
[1647013490456,7.59848887,2585.4,2585.1,0.0830544]
[1647013490655,0.00374151,2585.3,2585.1,0.0830544]
[1647013490853,0.00374151,2585.3,2585.1,0.4698048]
[1647013491054,0.00374151,2585.3,2585.2,0.3]
[1647013491457,7.59848887,2585.4,2585.2,0.3]
[1647013491856,7.60223035,2585.4,2585.2,0.3]
[1647013492657,7.60223035,2585.4,2585.1,0.3830544]
[1647013492861,7.60223035,2585.4,2585.1,0.0830544]
[1647013493057,7.59848887,2585.4,2585.1,0.0830544]
[1647013493258,7.59848887,2585.4,2584.9,1.59618139]
[1647013493898,7.60223032,2585.4,2585.0,0.00374211]
[1647013494299,0.00374466,2585.3,2585.0,0.0074873]
[1647013494502,0.00374466,2585.3,2585.1,0.3867626]
[1647013494703,0.00374466,2585.3,2585.1,0.47165521]
[1647013494904,0.00374466,2585.3,2585.2,0.3]
[1647013495108,7.59848887,2585.4,2585.2,0.3]
[1647013495511,0.0037447,2585.3,2585.1,1.35168261]
[1647013495705,0.0037447,2585.3,2585.1,0.68489261]
[1647013495906,0.0037447,2585.3,2585.1,0.38489261]
[1647013496305,0.0037447,2585.3,2585.2,0.3867134]
[1647013496506,7.59848887,2585.4,2585.2,0.6867134]
[1647013496711,0.0037447,2585.3,2585.2,0.6867134]
[1647013497564,7.59848887,2585.4,2585.2,0.6867134]
[1647013497753,7.59848887,2585.4,2585.3,1.9333]
[1647013497952,7.60220471,2585.4,2585.3,2.7065951]
[1647013498157,7.60220471,2585.4,2585.3,4.0065951]
[1647013498754,7.59848887,2585.4,2585.3,4.0065951]
[1647013499754,7.59848887,2585.4,2585.3,3.0065951]
[1647013500664,7.59848887,2585.4,2585.3,1.0732951]
[1647013501601,7.59848887,2585.4,2585.3,0.7732951]
[1647013503003,7.59848887,2585.4,2585.3,1.0732951]
[1647013506155,7.59724182,2585.4,2585.3,1.0732951]
[1647013508160,7.59724182,2585.4,2585.3,0.7732951]
[1647013509205,7.59724182,2585.4,2585.3,1.0732951]
[1647013509206,8.9642352,2585.4,2585.3,1.0732951]
[1647013509406,10.48619706,2585.4,2585.3,1.0732951]
[1647013509606,10.48619706,2585.4,2585.3,12.9032951]
[1647013509804,10.48619706,2585.4,2585.3,13.9032951]
[1647013510012,10.23143191,2585.4,2585.3,17.55822547]
[1647013510308,10.23143191,2585.4,2585.3,14.55822547]
[1647013511307,9.67142594,2585.4,2585.3,14.55822547]
[1647013511512,9.67142594,2585.4,2585.3,1.42822547]
[1647013511711,9.67142594,2585.4,2585.3,0.7732951]
[1647013512210,9.67142594,2585.4,2585.2,2.320042]
[1647013512565,5.01376434,2585.4,2585.3,12.02393037]
[1647013512958,5.01376434,2585.4,2585.3,12.32393037]
[1647013513159,5.01376434,2585.4,2585.3,13.32393037]
[1647013513758,5.01376434,2585.4,2585.3,16.71057367]
[1647013514159,5.01376434,2585.4,2585.3,1.88057367]
[1647013514360,5.01376434,2585.4,2585.3,12.71057367]
[1647013514761,5.01376434,2585.4,2585.3,13.71057367]
[1647013514960,5.01376434,2585.4,2585.3,1.6866433]
[1647013515361,5.01376434,2585.4,2585.3,0.6866433]
[1647013517206,5.01376434,2585.4,2585.3,12.5166433]
[1647013517506,5.01376434,2585.4,2585.3,0.6866433]
[1647013517805,5.01376434,2585.4,2585.3,1.6866433]
[1647013518104,5.01376434,2585.4,2585.3,0.6866433]
[1647013518505,5.01376434,2585.4,2585.3,12.71057367]
[1647013518712,0.00384514,2585.5,2585.4,18.33]
[1647013518713,4.514e-05,2585.5,2585.4,18.33]
[1647013518909,4.514e-05,2585.5,2585.4,22.7573]
[1647013519106,4.514e-05,2585.5,2585.4,24.25123037]
[1647013519306,0.00154001,2586.3,2585.6,0.3865242]
[1647013519507,0.00154001,2586.3,2585.8,11.83]
[1647013519709,0.00154001,2586.3,2585.9,16.29628]
[1647013519909,0.00154001,2586.3,2585.9,16.59628]
[1647013520156,0.00154001,2586.3,2586.0,1.11311235]
[1647013520359,0.00154001,2586.3,2586.0,1.41311235]
[1647013520956,0.00154001,2586.3,2586.0,1.79964635]
[1647013521362,0.00154001,2586.3,2585.9,0.9663]
[1647013521757,0.00154001,2586.3,2585.8,2.93259]
[1647013521961,0.00154001,2586.3,2585.8,2.23259]
[1647013522257,0.00154001,2586.3,2585.8,3.6192172]
[1647013522460,0.00154001,2586.3,2586.0,1.86299738]
[1647013522959,0.00154001,2586.3,2586.0,2.16299738]
[1647013523158,0.00416763,2586.2,2586.0,2.16299738]
[1647013524213,0.00154001,2586.3,2586.0,2.16299738]
[1647013524412,0.0041676,2586.2,2586.0,2.16299738]
[1647013525011,0.0041676,2586.2,2586.0,5.66299738]
[1647013525218,0.00154001,2586.3,2586.0,8.01592518]
[1647013525418,0.0041676,2586.2,2586.0,8.01592518]
[1647013525617,0.0041676,2586.2,2586.0,4.51592518]
[1647013525818,0.0041676,2586.2,2586.0,4.81592518]
[1647013526016,0.0041676,2586.2,2586.1,0.96634]
[1647013526415,0.00154001,2586.3,2586.1,0.96634]
[1647013526622,0.0041676,2586.2,2586.1,1.7393903]
[1647013527018,0.0041676,2586.2,2586.1,17.26268]
[1647013527219,0.0041676,2586.2,2586.1,18.45661037]
[1647013527654,6.76e-05,2586.2,2586.1,18.45661037]
[1647013527856,0.00154001,2586.3,2586.1,18.91761037]
[1647013528154,0.00154001,2586.3,2586.2,14.3181]
[1647013528155,0.0053713,2586.3,2586.2,14.3181]
[1647013528354,0.0053713,2586.3,2586.2,16.28434]
[1647013528754,0.00154001,2586.3,2586.2,16.28434]
[1647013529553,0.00154001,2586.3,2586.2,16.47827037]
[1647013529856,0.00154001,2586.3,2586.2,17.67837037]
[1647013530960,4.001e-05,2586.3,2586.2,18.13937037]
[1647013531157,4.001e-05,2586.3,2586.2,21.13937037]
[1647013532101,6.749e-05,2586.4,2586.3,18.33]
[1647013532302,6.749e-05,2586.4,2586.3,22.68884]
[1647013532500,0.04363276,2587.6,2586.5,11.83]
[1647013532704,0.04363276,2587.6,2586.9,12.2163706]
[1647013532902,0.04363276,2587.6,2587.2,0.5]
[1647013533504,0.04363276,2587.6,2587.1,0.88259886]
[1647013533706,0.04235578,2588.0,2587.1,0.88259886]
[1647013534104,0.04235578,2588.0,2587.3,0.3863942]
[1647013534309,0.04235578,2588.0,2587.2,0.96599]
[1647013534904,0.04675775,2588.2,2587.2,0.96599]
[1647013535157,0.05102512,2588.0,2587.1,2.81457886]
[1647013535361,0.96611,2587.9,2587.1,3.20102786]
[1647013535557,0.04453478,2587.8,2587.1,3.20102786]
[1647013535958,0.04453478,2587.8,2587.1,2.81457886]
[1647013536156,0.04453478,2587.8,2587.1,1.93198]
[1647013536358,0.00416667,2587.6,2586.9,1.7390731]
[1647013536557,0.00416667,2587.6,2586.8,1.93229]
[1647013536757,1.93679667,2587.6,2586.6,1.2112]
[1647013536964,0.0519487,2587.5,2586.6,1.2112]
[1647013537560,0.0519487,2587.5,2586.6,2.30359892]
[1647013537561,0.00416691,2587.2,2586.6,2.30359892]
[1647013537961,0.04950657,2587.1,2586.6,1.09239892]
[1647013538359,0.04950657,2587.1,2586.6,1.39239892]
[1647013538805,0.00416708,2587.0,2586.6,1.39239892]
[1647013539003,0.00416708,2587.0,2586.6,2.35870892]
[1647013539805,0.04950657,2587.1,2586.6,2.35870892]
[1647013540108,0.00416711,2586.9,2586.6,2.35870892]
[1647013540907,0.04950657,2587.1,2586.6,2.35870892]
[1647013541308,0.00390311,2586.9,2586.6,2.35870892]
[1647013542215,0.04950657,2587.1,2586.6,1.26631]
[1647013542655,0.04950657,2587.1,2586.5,0.3865263]
[1647013542656,0.00390311,2586.9,2586.5,0.3865263]
[1647013542860,0.00390311,2586.9,2585.9,2.18281]
[1647013543062,0.00390311,2586.9,2585.9,1.09454122]
[1647013543063,1.00459486,2586.8,2585.9,1.09454122]
[1647013543255,0.04945172,2586.8,2585.9,1.09454122]
[1647013543658,0.00390315,2586.8,2585.9,1.28847159]
[1647013544055,0.9665,2586.7,2585.9,1.28847159]
[1647013544255,0.05335221,2586.6,2585.9,1.28847159]
[1647013544658,0.04768001,2586.8,2585.9,1.28847159]
[1647013545262,0.0039635,2586.5,2585.9,1.67507349]
[1647013545662,0.05098726,2586.4,2585.9,1.67507349]
[1647013545863,0.05378192,2586.6,2585.9,1.28847159]
[1647013546064,0.0039635,2586.5,2585.9,1.28847159]
[1647013546710,0.0039635,2586.5,2585.9,1.67508249]
[1647013546911,0.04417717,2586.5,2585.9,1.67508249]
[1647013547110,0.04417717,2586.5,2585.9,1.28847159]
[1647013547316,0.00396336,2586.5,2585.9,2.25492159]
[1647013547520,0.00396336,2586.5,2585.9,0.19393037]
[1647013548318,0.00396336,2586.5,2585.8,0.9666]
[1647013548518,0.00416721,2586.5,2585.7,3.672726]
[1647013548718,0.00416721,2586.5,2585.8,0.98517412]
[1647013549018,0.00416721,2586.5,2585.7,2.89955]
[1647013549218,0.00416721,2586.5,2585.5,9.32166448]
[1647013549418,0.00416721,2586.5,2585.5,8.03451037]
[1647013549419,0.05090122,2586.4,2585.5,8.03451037]
[1647013549619,0.04199267,2586.3,2585.5,6.89474388]
[1647013549820,0.00416716,2586.5,2585.5,0.02084388]
[1647013550073,1.59213002,2586.5,2585.5,0.02084388]
[1647013550263,3.54240286,2586.4,2585.5,0.02084388]
[1647013550462,0.04696528,2586.3,2585.5,0.02084388]
[1647013550964,0.3,2585.2,2584.9,1.34493037]
[1647013551165,0.3,2585.2,2584.7,2.93374]
[1647013551361,0.3015622,2585.1,2584.7,2.93374]
[1647013551562,0.3015622,2585.1,2584.8,0.04035806]
[1647013551964,4.1179949,2585.1,2584.8,0.04035806]
[1647013552168,0.044368,2584.9,2584.8,0.04035806]
[1647013552461,0.044368,2584.9,2584.8,0.00388907]
[1647013553063,4.1179949,2585.1,2584.6,0.04149491]
[1647013553064,0.96708,2585.0,2584.6,0.04149491]
[1647013553261,0.96708,2585.0,2584.6,0.11994839]
[1647013553465,0.96708,2585.0,2584.8,1.93367]
[1647013553665,0.96708,2585.0,2584.7,0.23485686]
[1647013554107,1.21708,2585.0,2584.7,1.20177686]
[1647013554304,1.21708,2585.0,2584.7,1.00784649]
[1647013554505,0.96708,2585.0,2584.7,1.00784649]
[1647013554704,0.96708,2585.0,2584.7,0.04092649]
[1647013555112,0.96708,2585.0,2584.6,0.04149491]
[1647013555113,1.21708,2585.0,2584.6,0.04149491]
[1647013555709,1.21708,2585.0,2584.7,0.0039112]
[1647013556110,1.21708,2585.0,2584.7,0.9708912]
[1647013556712,1.21708,2585.0,2584.7,0.9748024]
[1647013556910,1.21708,2585.0,2584.7,0.9708912]
[1647013557111,1.21708,2585.0,2584.8,0.96694]
[1647013557958,0.96708,2585.0,2584.8,0.97085117]
[1647013558355,0.96708,2585.0,2584.8,0.00391117]
[1647013558555,0.91708,2585.0,2584.8,0.00391117]
[1647013558957,0.91708,2585.0,2584.6,1.00849491]
[1647013559156,0.91708,2585.0,2584.6,1.09530485]
[1647013559358,0.91708,2585.0,2584.7,0.04092649]
[1647013559560,0.91708,2585.0,2584.8,0.00398683]
[1647013560468,0.91708,2585.0,2584.8,0.0038695]
[1647013561067,0.97129244,2585.0,2584.8,0.0038695]
[1647013561308,0.97129244,2585.0,2584.7,0.04092649]
[1647013561309,1.01934404,2584.9,2584.7,0.04092649]
[1647013561507,0.04840258,2584.8,2584.7,0.04092649]
[1647013561712,0.04840258,2584.8,2584.4,0.05811207]
[1647013562208,0.04840258,2584.8,2584.7,0.96421972]
[1647013562408,0.96716,2584.8,2584.7,0.96421972]
[1647013562608,0.96716,2584.8,2584.7,1.00514621]
[1647013563210,0.96716,2584.8,2584.7,1.97209621]
[1647013566860,0.96715,2584.9,2584.7,1.97209621]
[1647013566861,0.96715,2584.9,2584.7,17.30209621]
[1647013567062,0.96715,2584.9,2584.7,15.92929658]
[1647013567265,0.96715,2584.9,2584.8,11.83]
[1647013567460,0.96715,2584.9,2584.8,12.13]
[1647013567660,0.96715,2584.9,2584.8,1.49393037]
[1647013567860,0.08014879,2584.9,2584.8,15.82393037]
[1647013568062,2.89996,2585.4,2585.2,12.7966]
[1647013568268,2.89996,2585.4,2585.3,3.5]
[1647013568462,2.89996,2585.4,2585.2,14.29053037]
[1647013568662,2.89996,2585.4,2585.2,14.14053037]
[1647013568904,2.89996,2585.4,2585.2,14.60153037]
[1647013569108,0.3868,2586.3,2585.4,11.83]
[1647013569307,1.9329945,2586.4,2585.5,3.5]
[1647013569506,1.9329945,2586.4,2585.5,4.15493037]
[1647013569707,1.9329945,2586.4,2585.5,5.15493037]
[1647013570008,1.9329945,2586.4,2585.5,16.98879299]
[1647013570213,1.9329945,2586.4,2585.6,1.1317906]
[1647013570622,0.96641,2585.9,2585.7,0.91638]
[1647013571414,0.96641,2585.9,2585.6,2.93276]
[1647013572317,0.96641,2585.9,2585.3,1.9333]
[1647013572564,0.96641,2585.9,2585.4,1.04559887]
[1647013572755,0.96641,2585.9,2585.5,0.00386665]
[1647013573362,0.96641,2585.9,2585.3,1.9333]
[1647013573364,0.9667973,2585.7,2585.3,1.9333]
[1647013573557,1.26683,2585.7,2585.1,2.01129326]
[1647013573758,1.26683,2585.7,2585.5,0.00386661]
[1647013574159,3.54551422,2585.6,2585.5,0.00386661]
[1647013574360,0.04551422,2585.6,2585.5,0.00386661]
[1647013574558,0.9669442,2585.4,2585.0,0.96692]
[1647013574759,2.1838942,2585.4,2585.0,0.96692]
[1647013574960,1.21695,2585.4,2584.9,2.83442546]
[1647013575362,1.21695,2585.4,2584.9,0.90067546]
[1647013575563,1.21695,2585.4,2584.9,1.90067546]
[1647013575763,1.21695,2585.4,2585.1,0.96689]
[1647013575967,0.9668607,2585.3,2585.1,0.96689]
[1647013576607,4.4668607,2585.3,2584.7,0.04092649]
[1647013576808,1.93401,2585.2,2584.8,0.96699]
[1647013577006,2.901023,2585.2,2584.7,1.97479649]
[1647013577405,2.901023,2585.2,2584.7,0.04092649]
[1647013577706,3.72766893,2585.2,2584.7,0.04092649]
[1647013577909,3.868355,2585.1,2584.7,0.04092649]
[1647013578908,0.96709,2585.0,2584.7,0.04092649]
[1647013579609,0.96709,2585.0,2584.7,0.04506973]
[1647013580663,0.96709,2585.0,2584.7,0.04092649]
[1647013580970,4.52056822,2584.9,2584.7,0.04506973]
[1647013581167,0.04740688,2584.8,2584.7,0.04506973]
[1647013581762,1.98792932,2584.9,2584.7,1.18073701]
[1647013581962,1.98792932,2584.9,2584.7,1.00797649]
[1647013582262,1.98792932,2584.9,2584.7,0.90797649]
[1647013582466,1.9342557,2584.9,2584.7,0.90797649]
[1647013583666,0.96719,2584.9,2584.7,0.90797649]
[1647013583911,0.96719,2584.9,2584.7,1.77931622]
[1647013584109,0.96719,2584.9,2584.8,0.08445811]
[1647013585313,0.96719,2584.9,2584.7,1.77931622]
[1647013585514,0.96719,2584.9,2584.7,0.91179285]
[1647013585916,1.9342447,2584.9,2584.7,0.91179285]
[1647013586115,1.9342447,2584.9,2584.7,0.86179285]
[1647013586616,1.9342447,2584.9,2584.7,0.85797649]
[1647013586816,1.9342447,2584.9,2584.7,0.86180392]
[1647013587417,1.9342447,2584.9,2584.7,1.99244275]
[1647013587857,1.9342447,2584.9,2584.7,1.98861532]
[1647013589256,1.9342447,2584.9,2584.7,1.99023225]
[1647013590259,1.9342447,2584.9,2584.7,1.98861532]
[1647013590461,0.96719,2584.9,2584.7,1.98861532]
[1647013590660,0.96719,2584.9,2584.7,2.06939269]
[1647013590861,0.96719,2584.9,2584.8,0.07980472]
[1647013595863,0.38699888,2584.9,2584.8,0.07980472]
[1647013596067,1.93719211,2585.4,2584.9,11.9134284]
[1647013596267,1.93719211,2585.4,2585.3,1.10271893]
[1647013596268,0.00391211,2585.4,2585.3,1.10271893]
[1647013596464,6.78229242,2586.2,2585.4,0.06914795]
[1647013596665,0.96653,2585.5,2585.4,0.06914795]
[1647013596870,0.96653,2585.5,2585.4,12.291]
[1647013597266,0.96653,2585.5,2585.4,13.291]
[1647013598165,0.96653,2585.5,2585.4,14.25749]
[1647013598567,0.96653,2585.5,2585.4,14.84183701]
[1647013600218,0.96653,2585.5,2585.4,15.03576738]
[1647013600417,1.933,2585.7,2585.6,11.83]
[1647013600418,1.86595259,2585.7,2585.6,11.83]
[1647013600819,1.86595259,2585.7,2585.6,13.591]
[1647013601616,2.16595259,2585.7,2585.6,13.591]
[1647013601816,2.16595259,2585.7,2585.6,13.291]
[1647013602020,2.16595259,2585.7,2585.6,13.591]
[1647013602417,2.16595259,2585.7,2585.6,17.091]
[1647013602658,2.16595259,2585.7,2585.6,13.591]
[1647013604160,2.16595259,2585.7,2585.6,17.091]
[1647013604360,2.16595259,2585.7,2585.6,13.591]
[1647013604961,2.16595259,2585.7,2585.6,17.091]
[1647013605363,1.67713902,2585.7,2585.6,17.091]
[1647013605562,1.67713902,2585.7,2585.6,13.591]
[1647013605762,0.97013819,2585.8,2585.6,17.091]
[1647013605763,0.96633,2585.8,2585.6,17.091]
[1647013605964,3.86615,2586.6,2586.0,11.83]
[1647013606165,10.2944,2587.3,2586.6,0.1759]
[1647013606166,0.04485384,2587.3,2586.6,0.1759]
[1647013606412,0.29485384,2587.3,2586.6,0.1259]
[1647013606811,0.29485384,2587.3,2586.8,1.05640838]
[1647013607010,0.29485384,2587.3,2586.8,2.02233838]
[1647013607217,0.29485384,2587.3,2586.8,14.81822838]
[1647013607218,0.25,2587.3,2586.8,14.81822838]
[1647013607412,0.25,2587.3,2586.9,0.07917672]
[1647013607413,1.93187,2587.2,2586.9,0.07917672]
[1647013607916,1.93187,2587.2,2587.0,12.291]
[1647013608213,3.86373,2587.9,2587.1,0.47449072]
[1647013608214,0.99681908,2587.8,2587.1,0.47449072]
[1647013608512,0.99681908,2587.8,2587.3,0.08953749]
[1647013608911,1.9314,2587.5,2587.3,0.08953749]
[1647013609315,1.9314,2587.5,2587.2,0.96577]
[1647013609822,2.2355371,2587.5,2587.2,0.96577]
[1647013610071,0.05300585,2587.4,2587.2,0.96577]
[1647013610265,1.01901585,2587.4,2587.2,0.96577]
[1647013610465,2.13934219,2587.4,2587.2,0.96577]
[1647013610767,0.04465235,2587.3,2586.6,1.3009]
[1647013610969,0.04465235,2587.3,2586.6,0.1259]
[1647013611368,1.21619,2587.2,2586.6,0.1259]
[1647013611768,1.51619,2587.2,2586.7,0.96617]
[1647013611969,1.51619,2587.2,2586.7,1.0496605]
[1647013612374,0.00413744,2587.0,2586.7,1.0496605]
[1647013612568,0.97028744,2587.0,2586.8,0.07732492]
[1647013612770,0.97028744,2587.0,2586.7,2.02605389]
[1647013612969,1.27028744,2587.0,2586.7,5.52605389]
[1647013613168,1.27028744,2587.0,2586.8,0.07114159]
[1647013613169,0.97028744,2587.0,2586.8,0.07114159]
[1647013614209,0.96615,2587.0,2586.8,0.07114159]
[1647013614411,0.96839839,2587.0,2586.8,14.79888159]
[1647013614609,0.96839839,2587.0,2586.9,0.07284408]
[1647013615013,1.27526998,2587.0,2586.9,0.07284408]
[1647013615414,1.27302159,2587.0,2586.9,0.07284408]
[1647013615613,1.27302159,2587.0,2586.9,11.90284408]
[1647013615813,1.27302159,2587.0,2586.9,13.291]
[1647013616214,1.27302159,2587.0,2586.9,0.461]
[1647013616415,1.27302159,2587.0,2586.7,0.96617]
[1647013616617,1.27302159,2587.0,2586.5,1.93251]
[1647013616618,0.04546433,2586.9,2586.5,1.93251]
[1647013616815,1.01181433,2586.9,2586.5,1.93251]
[1647013617014,0.25,2586.7,2585.9,5.8863]
[1647013617215,1.93287,2586.6,2585.8,6.184]
[1647013617414,0.91134523,2586.2,2585.7,2.12573258]
[1647013617676,1.16134523,2586.2,2585.7,1.93287]
[1647013618470,0.9665,2586.1,2585.7,1.93287]
[1647013618672,1.2665,2586.1,2585.7,1.93287]
[1647013618970,1.2665,2586.1,2585.8,2.9524742]
[1647013619371,0.00414205,2586.0,2585.8,2.9524742]
[1647013619570,0.97058205,2586.0,2585.8,3.14640457]
[1647013620178,0.96644,2586.0,2585.8,3.14640457]
[1647013620578,0.97058205,2586.0,2585.8,1.93289]
[1647013621912,0.96644,2586.0,2585.8,1.93289]
[1647013622109,0.97057765,2586.0,2585.8,2.77934288]
[1647013622310,0.97057765,2586.0,2585.8,15.60934288]
[1647013622510,0.97057765,2586.0,2585.8,14.60934288]
[1647013622716,0.96644,2586.0,2585.8,15.60934288]
[1647013623116,0.3939449,2586.0,2585.8,15.80327325]
[1647013623314,0.3939449,2586.0,2585.8,16.56427325]
[1647013623915,0.38994705,2586.0,2585.8,16.56427325]
[1647013624114,0.00238177,2586.0,2585.9,0.96623]
[1647013624317,0.00238177,2586.0,2585.9,14.22326]
[1647013624318,8.177e-05,2586.0,2585.9,14.22326]
[1647013624516,8.177e-05,2586.0,2585.9,14.41719037]
[1647013624716,1.93213,2586.7,2586.1,11.83]
[1647013624915,1.93213,2586.7,2586.3,11.83]
[1647013625165,1.93213,2586.7,2586.3,12.291]
[1647013625372,1.93213,2586.7,2586.4,0.19393037]
[1647013625565,1.93222,2586.6,2586.4,0.19393037]
[1647013625765,1.93222,2586.6,2586.5,12.86087306]
[1647013625970,0.96606,2586.7,2586.5,13.32187306]
[1647013626168,0.96606,2586.7,2586.5,14.51580343]
[1647013626467,0.96606,2586.7,2586.5,15.78173343]
[1647013626665,1.26606,2586.7,2586.5,15.78173343]
[1647013627068,0.96606,2586.7,2586.5,15.78173343]
[1647013627365,1.26606,2586.7,2586.5,15.78173343]
[1647013627568,0.96606,2586.7,2586.5,15.78173343]
[1647013627972,1.26606,2586.7,2586.5,15.78173343]
[1647013628169,0.96606,2586.7,2586.5,15.78173343]
[1647013628369,0.3,2586.7,2586.6,18.22787]
[1647013628570,4.8301655,2587.7,2586.6,19.68887]
[1647013628571,3.86421,2587.7,2586.6,19.68887]
[1647013628818,3.86421,2587.7,2586.6,21.07350037]
[1647013629019,0.00414526,2586.7,2586.6,21.07350037]
[1647013629224,4.526e-05,2586.7,2586.6,23.00512037]
[1647013629425,3.86363,2588.1,2586.7,0.96566474]
[1647013629621,1.00630332,2588.5,2586.8,15.791]
[1647013629820,1.00630332,2588.5,2587.0,11.83]
[1647013630024,1.00630332,2588.5,2587.2,11.83]
[1647013630221,1.93134,2587.9,2587.4,11.83]
[1647013630421,0.90156183,2587.8,2587.5,0.461]
[1647013630823,0.90156183,2587.8,2587.5,0.761]
[1647013631023,0.90156183,2587.8,2587.5,0.461]
[1647013631322,3.1972222,2587.9,2587.5,0.461]
[1647013631523,0.965871,2587.8,2587.4,1.0]
[1647013631824,0.965871,2587.8,2587.2,12.13]
[1647013631825,1.93177,2587.8,2587.2,11.83]
[1647013632023,2.23177,2587.8,2587.2,11.83]
[1647013632660,3.08843641,2587.8,2587.2,12.76699298]
[1647013632861,0.9660029,2587.6,2587.2,12.76699298]
[1647013633063,0.96586,2587.5,2587.2,12.76699298]
[1647013633264,0.96586,2587.5,2587.2,13.76699298]
[1647013633461,1.26586,2587.5,2587.2,13.76699298]
[1647013633867,1.26990009,2587.5,2587.2,14.06699298]
[1647013634661,1.26586,2587.5,2587.2,14.06699298]
[1647013634861,1.26586,2587.5,2587.3,0.00428216]
[1647013635061,1.26971487,2587.5,2587.3,0.00428216]
[1647013635267,1.26971487,2587.5,2587.3,8.216e-05]
[1647013636066,1.26823759,2587.5,2587.3,8.216e-05]
[1647013636520,1.21823759,2587.5,2587.3,8.216e-05]
[1647013636719,1.21823759,2587.5,2587.4,0.82176954]
[1647013637119,1.21586,2587.5,2587.4,0.82176954]
[1647013637320,1.21823759,2587.5,2587.4,0.82176954]
[1647013637819,1.21823759,2587.5,2587.3,0.96597216]
[1647013638220,1.21586,2587.5,2587.3,8.216e-05]
[1647013638622,3.5,2587.4,2587.3,8.216e-05]
[1647013638824,1.01954306,2587.3,2586.5,0.3993]
[1647013639021,0.0468721,2587.1,2586.5,0.3993]
[1647013639826,0.90297992,2586.7,2586.5,0.3993]
[1647013640075,0.05281479,2586.6,2586.5,0.3993]
[1647013640669,3.55281479,2586.6,2585.8,0.07347196]
[1647013640975,3.55281479,2586.6,2585.6,0.0783491]
[1647013640976,0.0523336,2586.5,2585.6,0.0783491]
[1647013641169,0.0523336,2586.5,2585.8,1.07247207]
[1647013641170,1.9331396,2586.3,2585.8,1.07247207]
[1647013641368,2.2331396,2586.3,2585.8,1.07247207]
[1647013641569,1.9331396,2586.3,2585.8,1.07247207]
[1647013641768,2.2331396,2586.3,2585.8,1.07247207]
[1647013642167,2.92490602,2586.3,2585.8,1.07247207]
[1647013642366,1.93297,2586.2,2585.7,1.96656]
[1647013642770,1.01217834,2586.1,2585.6,0.00400385]
[1647013642970,3.55364416,2586.0,2585.6,0.00400385]
[1647013643270,0.80697714,2585.8,2585.4,1.0]
[1647013643473,1.01244384,2585.7,2585.4,1.0]
[1647013643669,0.966685,2585.7,2585.6,0.00383915]
[1647013643912,0.0490426,2585.7,2585.6,0.00383915]
[1647013644311,1.93328,2585.8,2585.6,0.00383915]
[1647013644512,1.93328,2585.8,2585.6,11.83]
[1647013644910,1.93328,2585.8,2585.7,0.83893507]
[1647013645718,1.26655,2585.9,2585.7,12.66893507]
[1647013645916,1.26655,2585.9,2585.7,0.96649]
[1647013646120,1.26655,2585.9,2585.7,1.96649]
[1647013646316,1.26655,2585.9,2585.6,1.93663525]
[1647013646517,1.26655,2585.9,2585.6,1.92794307]
[1647013646718,1.26655,2585.9,2585.5,1.0]
[1647013647117,1.99863754,2585.8,2585.6,0.00362765]
[1647013647319,0.9666761,2585.7,2585.6,0.00362765]
[1647013647965,2.9000261,2585.7,2585.5,1.0]
[1647013648164,2.9000261,2585.7,2585.5,1.00373964]
[1647013648364,3.2000261,2585.7,2585.5,1.00373964]
[1647013649165,3.2000261,2585.7,2585.5,1.0]
[1647013649365,3.2000261,2585.7,2585.5,1.00373967]
[1647013650170,2.23335,2585.7,2585.5,2.93685967]
[1647013650571,2.23335,2585.7,2585.5,2.93312]
[1647013650772,2.23335,2585.7,2585.5,3.93685088]
[1647013650972,2.23335,2585.7,2585.6,0.92288892]
[1647013651172,1.93335,2585.7,2585.6,0.92288892]
[1647013651422,1.93335,2585.7,2585.5,3.93685088]
[1647013651820,1.93335,2585.7,2585.5,2.0]
[1647013652017,1.93335,2585.7,2585.5,2.00357222]
[1647013652216,1.93335,2585.7,2585.5,1.00357222]
[1647013652621,3.1999498,2585.7,2585.5,1.00357222]
[1647013652820,3.1999498,2585.7,2585.5,1.0]
[1647013653022,3.1999498,2585.7,2585.5,1.00357225]
[1647013653822,3.1999498,2585.7,2585.5,1.0]
[1647013654222,3.1999498,2585.7,2585.5,1.00357813]
[1647013654421,3.1999498,2585.7,2585.5,1.50357813]
[1647013654621,3.1999498,2585.7,2585.5,1.00357813]
[1647013655069,3.1999498,2585.7,2585.5,1.0]
[1647013655461,3.1999498,2585.7,2585.5,1.00356986]
[1647013655663,0.04395691,2585.6,2585.5,1.00356986]
[1647013656262,0.04395691,2585.6,2585.5,1.0]
[1647013663163,3.54395691,2585.6,2585.5,1.0]
[1647013663564,0.04395691,2585.6,2585.5,1.0]
[1647013663865,0.04395691,2585.6,2584.9,1.0]